bitfinex-derivatives/quotes_BTCF0:USTF0_20250121
["timestamp","ask_amount","ask_price","bid_price","bid_amount"]
[1737479025661,0.539086,105120.0,105110.0,0.00014263]
[1737479027069,0.539086,105120.0,105110.0,0.00214263]
[1737479027576,0.539086,105120.0,105110.0,0.00014263]
[1737479027763,0.178286,105120.0,105110.0,0.00014263]
[1737479027968,0.539086,105120.0,105110.0,0.00014263]
[1737479029777,0.66957415,105120.0,105110.0,0.00014263]
[1737479030073,0.539086,105120.0,105110.0,0.00014263]
[1737479031577,0.66957415,105120.0,105110.0,0.00014263]
[1737479034078,0.539086,105120.0,105110.0,0.00014263]
[1737479034773,0.178286,105120.0,105110.0,0.12134263]
[1737479034974,0.178286,105120.0,105110.0,0.52973263]
[1737479035175,0.1307,105120.0,105110.0,0.52973263]
[1737479035374,0.1307,105120.0,105110.0,0.16893263]
[1737479035566,0.1307,105120.0,105110.0,0.12134263]
[1737479035769,0.178286,105120.0,105110.0,0.12134263]
[1737479036168,0.178286,105120.0,105110.0,0.16893263]
[1737479036368,0.1307,105120.0,105110.0,0.17093263]
[1737479036769,0.26972899,105120.0,105110.0,0.17093263]
[1737479037077,0.31731499,105120.0,105110.0,0.16893263]
[1737479037675,0.26972899,105120.0,105110.0,0.16893263]
[1737479038174,0.76101714,105120.0,105110.0,0.12134263]
[1737479038479,0.80860314,105120.0,105110.0,0.00014263]
[1737479038878,0.047597,105100.0,105080.0,0.408403]
[1737479039072,0.58648415,105100.0,105080.0,0.408403]
[1737479039273,0.53888515,105100.0,105080.0,0.408403]
[1737479039776,0.047597,105100.0,105080.0,0.408403]
[1737479039966,0.047597,105100.0,105080.0,0.5794235]
[1737479040171,0.04773963,105100.0,105080.0,0.57956613]
[1737479040476,0.04773963,105100.0,105090.0,0.3608]
[1737479040670,0.00014263,105100.0,105090.0,0.047599]
[1737479040875,0.53902678,105100.0,105080.0,0.58156413]
[1737479041182,0.17808715,105090.0,105080.0,0.53396313]
[1737479041378,0.17808715,105090.0,105080.0,0.58156713]
[1737479041379,0.1252,105090.0,105080.0,0.58156713]
[1737479041883,0.172799,105090.0,105080.0,0.53396313]
[1737479042271,0.172799,105090.0,105080.0,0.53196313]
[1737479042477,0.04773963,105100.0,105080.0,0.53196313]
[1737479042679,0.04773963,105100.0,105090.0,0.047599]
[1737479043083,0.00014263,105100.0,105090.0,0.047599]
[1737479043473,0.04773763,105100.0,105090.0,0.047599]
[1737479043778,0.04773763,105100.0,105080.0,0.58156413]
[1737479044180,0.04773763,105100.0,105090.0,0.047599]
[1737479044384,0.13917162,105100.0,105090.0,0.047599]
[1737479044881,0.18677062,105100.0,105080.0,0.36294263]
[1737479045078,0.17808715,105090.0,105080.0,0.00214263]
[1737479045278,0.63045977,105100.0,105080.0,0.04974663]
[1737479045485,0.54756762,105100.0,105090.0,0.002]
[1737479045686,0.18676762,105100.0,105090.0,0.002]
[1737479046179,0.18676762,105100.0,105080.0,0.52894663]
[1737479046387,0.13917162,105100.0,105090.0,0.047599]
[1737479046875,0.13917162,105100.0,105090.0,0.049599]
[1737479048086,0.18676662,105100.0,105090.0,0.002]
[1737479048286,0.13917162,105100.0,105090.0,0.002]
[1737479048471,0.13917162,105100.0,105090.0,0.049599]
[1737479049084,0.13917162,105100.0,105090.0,0.410399]
[1737479049285,0.13917162,105100.0,105090.0,0.049599]
[1737479049473,0.13917162,105100.0,105090.0,0.410399]
[1737479049879,0.13917162,105100.0,105090.0,0.3628]
[1737479049880,0.31725477,105100.0,105090.0,0.3628]
[1737479050685,0.18676662,105100.0,105090.0,0.410399]
[1737479051692,0.18676662,105100.0,105090.0,0.002]
[1737479051882,0.27379154,105100.0,105090.0,0.002]
[1737479052285,0.13476255,105100.0,105090.0,0.002]
[1737479052883,0.13576255,105100.0,105090.0,0.002]
[1737479053387,0.13576255,105100.0,105080.0,2.02894363]
[1737479054394,0.13476255,105100.0,105080.0,2.02894363]
[1737479054598,0.13676255,105100.0,105080.0,2.02894363]
[1737479056709,0.00214263,105100.0,105090.0,0.408399]
[1737479056903,0.00214263,105100.0,105090.0,0.539699]
[1737479057596,0.00214263,105100.0,105090.0,0.178899]
[1737479057597,0.08916755,105100.0,105090.0,0.178899]
[1737479057799,0.047599,105090.0,105080.0,2.02894463]
[1737479058003,0.13462392,105090.0,105080.0,0.36094263]
[1737479058293,0.22164884,105090.0,105080.0,0.00014263]
[1737479058488,0.34534884,105090.0,105080.0,0.00014263]
[1737479058794,0.13476455,105100.0,105080.0,0.04774363]
[1737479058993,0.001,105090.0,105080.0,0.54932648]
[1737479059391,0.13562392,105090.0,105080.0,0.42542648]
[1737479059899,0.13562392,105090.0,105080.0,0.42342648]
[1737479060193,0.13662392,105090.0,105080.0,0.42342648]
[1737479060695,0.13662392,105090.0,105080.0,0.42542648]
[1737479060992,0.49742392,105090.0,105080.0,0.01702548]
[1737479061784,0.13562392,105090.0,105080.0,0.01702548]
[1737479063485,0.49642392,105090.0,105080.0,0.01702548]
[1737479064493,0.58344884,105090.0,105080.0,0.01702548]
[1737479064697,0.58344884,105090.0,105060.0,0.75827649]
[1737479065000,0.13463292,105070.0,105060.0,0.75827649]
[1737479065691,0.08702492,105070.0,105060.0,0.75827649]
[1737479065993,0.34016755,105080.0,105060.0,0.80988749]
[1737479066194,0.13463292,105070.0,105060.0,0.81888749]
[1737479066595,0.13563292,105070.0,105060.0,0.82188749]
[1737479066991,0.13563292,105070.0,105060.0,0.77427649]
[1737479067194,0.13563292,105070.0,105060.0,0.3768]
[1737479068202,0.001,105070.0,105060.0,0.424413]
[1737479068792,0.001,105070.0,105060.0,0.51143792]
[1737479069797,0.00014263,105080.0,105070.0,0.047608]
[1737479069995,0.00014263,105080.0,105070.0,0.61883292]
[1737479070195,0.00014263,105080.0,105070.0,0.74103292]
[1737479070399,0.00014263,105080.0,105070.0,0.654008]
[1737479070603,0.04774663,105080.0,105070.0,0.654008]
[1737479070795,0.13477155,105080.0,105070.0,0.3608]
[1737479071102,0.047608,105070.0,105060.0,0.424411]
[1737479071294,0.13463292,105070.0,105060.0,0.424411]
[1737479071806,0.13463292,105070.0,105060.0,0.3698]
[1737479072101,0.25553292,105070.0,105060.0,0.3698]
[1737479072299,0.38373292,105070.0,105060.0,0.3608]
[1737479072690,0.38473292,105070.0,105060.0,0.3678]
[1737479072893,0.38473292,105070.0,105060.0,0.3768]
[1737479075998,0.52400433,105070.0,105060.0,0.3768]
[1737479076302,0.52400433,105070.0,105060.0,0.016]
[1737479076695,0.52400433,105070.0,105060.0,0.03088703]
[1737479078303,0.52400433,105070.0,105060.0,0.39168703]
[1737479078701,0.52400433,105070.0,105060.0,0.52632495]
[1737479078702,0.001,105070.0,105060.0,0.52632495]
[1737479079001,0.00014263,105080.0,105060.0,0.52632495]
[1737479079002,0.04774663,105080.0,105070.0,0.047608]
[1737479079198,0.13477155,105080.0,105070.0,0.42329503]
[1737479079406,0.13477155,105080.0,105070.0,0.408408]
[1737479079598,0.13477155,105080.0,105060.0,1.99862]
[1737479079796,0.08702492,105070.0,105060.0,2.046232]
[1737479079997,0.13477155,105080.0,105060.0,2.040712]
[1737479080200,0.13477155,105080.0,105070.0,0.001]
[1737479080708,0.13477155,105080.0,105060.0,2.04171]
[1737479081003,0.13477155,105080.0,105060.0,2.04071]
[1737479081705,0.13463292,105070.0,105060.0,0.3618]
[1737479082302,0.13477355,105080.0,105060.0,0.408411]
[1737479082508,0.49557355,105080.0,105070.0,0.001]
[1737479082702,0.49557355,105080.0,105070.0,0.01588619]
[1737479082899,0.49557355,105080.0,105070.0,0.01488619]
[1737479083403,0.49557355,105080.0,105060.0,0.413411]
[1737479083602,0.49557355,105080.0,105070.0,0.001]
[1737479083807,0.40854863,105080.0,105070.0,0.048608]
[1737479084210,0.00014263,105080.0,105070.0,0.048608]
[1737479086700,0.00014263,105080.0,105070.0,0.409408]
[1737479086901,0.00014263,105080.0,105070.0,0.664908]
[1737479087815,0.08716755,105080.0,105070.0,0.664908]
[1737479088314,0.08716755,105080.0,105070.0,0.304108]
[1737479088517,0.00014263,105080.0,105070.0,0.664908]
[1737479089016,0.13477155,105080.0,105070.0,0.3618]
[1737479091116,0.49557155,105080.0,105070.0,0.001]
[1737479091416,0.047613,105060.0,105050.0,0.39761912]
[1737479091712,0.047613,105060.0,105030.0,0.33964901]
[1737479091713,0.047622,105040.0,105030.0,0.33964901]
[1737479092013,0.58247184,105040.0,105030.0,0.33964901]
[1737479092212,0.83667184,105040.0,105030.0,0.33964901]
[1737479092608,0.74964692,105040.0,105030.0,0.33964901]
[1737479092807,0.38884692,105040.0,105030.0,0.33964901]
[1737479093214,0.38884692,105040.0,105030.0,0.34064901]
[1737479094012,0.38884692,105040.0,105030.0,0.70144901]
[1737479094313,0.047631,105020.0,105010.0,0.45229402]
[1737479094507,0.49545592,105020.0,105010.0,0.45229402]
[1737479094904,0.13465592,105020.0,105010.0,0.45229402]
[1737479095114,0.08702492,105030.0,105010.0,0.81309402]
[1737479095408,0.08702492,105020.0,105010.0,0.81309402]
[1737479095619,0.08702492,105020.0,105010.0,0.40957763]
[1737479095813,0.17849711,105030.0,105010.0,0.40957763]
[1737479096014,0.04777063,105030.0,105020.0,0.3608]
[1737479096313,0.04777063,105030.0,105010.0,0.40957763]
[1737479096314,0.047631,105020.0,105010.0,0.00114263]
[1737479096517,0.047631,105020.0,105010.0,0.36194263]
[1737479096518,0.17835748,105020.0,105010.0,0.36194263]
[1737479096906,0.17835748,105020.0,105010.0,0.36294263]
[1737479097508,0.26738667,105030.0,105010.0,0.36194263]
[1737479097713,0.05748719,105030.0,105020.0,0.3608]
[1737479097922,0.18821367,105030.0,105020.0,0.4827]
[1737479098420,0.05748719,105030.0,105020.0,1.9827]
[1737479098809,0.05748719,105030.0,105020.0,0.4827]
[1737479098810,0.00014263,105030.0,105020.0,0.4827]
[1737479099014,0.00014263,105030.0,105020.0,0.66105748]
[1737479099217,0.13905815,105040.0,105030.0,0.047626]
[1737479099515,0.1669655,105050.0,105040.0,0.047622]
[1737479099825,0.04761,105070.0,105050.0,0.047614]
[1737479100014,0.04761,105070.0,105060.0,0.047613]
[1737479100416,0.047613,105060.0,105050.0,0.40855963]
[1737479101028,0.047613,105060.0,105050.0,0.36094263]
[1737479101620,0.047613,105060.0,105050.0,0.40855963]
[1737479102625,0.049613,105060.0,105050.0,0.53405963]
[1737479103022,0.18033948,105060.0,105050.0,0.36094263]
[1737479103320,0.53913948,105060.0,105050.0,0.00114263]
[1737479103625,0.62242615,105060.0,105050.0,0.00114263]
[1737479104823,0.63229145,105060.0,105050.0,0.00114263]
[1737479105025,0.63429145,105060.0,105050.0,0.00114263]
[1737479105632,0.63229145,105060.0,105050.0,0.00114263]
[1737479105829,0.63729145,105060.0,105050.0,0.00014263]
[1737479106517,0.63629145,105060.0,105050.0,0.00014263]
[1737479107125,0.047623,105040.0,105030.0,0.3608]
[1737479108125,0.047623,105040.0,105030.0,0.3618]
[1737479108827,0.00014263,105050.0,105040.0,0.047622]
[1737479109028,0.00014263,105050.0,105040.0,0.535822]
[1737479109217,0.00014263,105050.0,105040.0,0.66654848]
[1737479109918,0.00014263,105050.0,105040.0,0.535822]
[1737479110422,0.00014263,105050.0,105040.0,0.408422]
[1737479110617,0.13086911,105050.0,105040.0,0.408422]
[1737479110819,0.00014263,105050.0,105040.0,0.408422]
[1737479111020,0.00014263,105050.0,105040.0,0.409422]
[1737479111324,0.04775963,105050.0,105040.0,0.3618]
[1737479111923,0.17848611,105050.0,105040.0,0.3618]
[1737479112328,0.04775963,105050.0,105040.0,0.3618]
[1737479112626,0.00014263,105050.0,105040.0,0.539422]
[1737479112828,0.04775963,105050.0,105040.0,0.539422]
[1737479113420,0.04775963,105050.0,105040.0,0.409422]
[1737479115730,0.00014263,105050.0,105040.0,0.409422]
[1737479116123,0.04775963,105050.0,105040.0,0.409422]
[1737479116523,0.04775963,105050.0,105040.0,0.3618]
[1737479116724,0.17848611,105050.0,105040.0,0.3618]
[1737479117024,0.53928611,105050.0,105040.0,0.001]
[1737479117226,0.66328611,105050.0,105040.0,0.001]
[1737479117531,0.66328611,105050.0,105020.0,0.36094263]
[1737479117532,1.09401259,105050.0,105020.0,0.36094263]
[1737479117831,0.53915248,105030.0,105000.0,0.4608]
[1737479118017,0.53916148,105010.0,105000.0,0.1]
[1737479118220,0.53916148,105010.0,105000.0,0.4608]
[1737479118221,0.17836148,105010.0,105000.0,0.4608]
[1737479118426,0.17836148,105010.0,105000.0,0.1]
[1737479119127,0.53916148,105010.0,105000.0,0.101]
[1737479119427,0.04764,105000.0,104990.0,0.00014263]
[1737479119631,0.17836648,105000.0,104990.0,0.00014263]
[1737479119826,0.53916648,105000.0,104990.0,0.00014263]
[1737479120027,0.17836648,105000.0,104990.0,0.00014263]
[1737479121531,0.53916648,105000.0,104990.0,0.00014263]
[1737479121718,0.66989296,105000.0,104990.0,0.00014263]
[1737479122126,0.65021537,105000.0,104990.0,0.00014263]
[1737479122422,0.78094185,105000.0,104990.0,0.00114263]
[1737479122827,0.65021537,105000.0,104990.0,0.00114263]
[1737479124025,0.65221537,105000.0,104990.0,0.00014263]
[1737479124431,0.29141537,105000.0,104990.0,0.00014263]
[1737479124832,0.29141537,105000.0,104990.0,0.04778663]
[1737479124833,0.11504889,105000.0,104990.0,0.04778663]
[1737479125034,0.11504889,105000.0,104990.0,0.66171311]
[1737479125227,0.16657334,105010.0,105000.0,0.04764]
[1737479125736,0.16657334,105010.0,105000.0,0.40844]
[1737479125737,0.1104848,105010.0,105000.0,0.40844]
[1737479126450,0.1104848,105010.0,105000.0,0.04764]
[1737479126632,0.1154848,105010.0,104990.0,0.65728463]
[1737479126939,0.04764,105000.0,104990.0,0.12254263]
[1737479127141,0.17836648,105000.0,104990.0,0.00014263]
[1737479129043,0.90184928,105010.0,104990.0,0.00014263]
[1737479129342,0.54104928,105010.0,104990.0,0.36094263]
[1737479129534,0.001,105000.0,104990.0,0.36094263]
[1737479129732,0.001,105000.0,104990.0,0.00014263]
[1737479130345,0.002,105000.0,104990.0,0.36094263]
[1737479130641,0.001,105000.0,104990.0,0.36094263]
[1737479130937,0.04864,105000.0,104990.0,0.36094263]
[1737479131640,0.04864,105000.0,104990.0,0.40858663]
[1737479131641,0.001,105000.0,104990.0,0.40858663]
[1737479131840,0.001,105000.0,104990.0,0.53931311]
[1737479132340,0.001,105000.0,104990.0,2.03931311]
[1737479132638,0.001,105000.0,104990.0,0.40858663]
[1737479132844,0.003,105000.0,104990.0,0.40858663]
[1737479133145,0.00014263,105020.0,105010.0,0.047635]
[1737479133344,0.08280964,105030.0,105020.0,0.047631]
[1737479133643,0.08280964,105030.0,105020.0,0.408431]
[1737479134339,0.13043564,105030.0,105020.0,0.408431]
[1737479136039,0.13043564,105030.0,105020.0,0.410431]
[1737479136240,0.047626,105030.0,105020.0,0.410431]
[1737479136445,0.047626,105030.0,105020.0,0.434231]
[1737479136836,0.047626,105030.0,105020.0,0.073431]
[1737479137140,0.047626,105030.0,105020.0,0.0258]
[1737479137941,0.047626,105030.0,105020.0,0.434231]
[1737479138349,0.13086911,105040.0,105020.0,0.3866]
[1737479138539,0.04776463,105040.0,105030.0,0.3608]
[1737479138939,0.29739111,105040.0,105030.0,0.3608]
[1737479139238,0.41719111,105040.0,105030.0,0.3608]
[1737479139747,0.50100075,105040.0,105030.0,0.3608]
[1737479140143,0.047626,105030.0,105020.0,0.0238]
[1737479140944,0.17835248,105030.0,105020.0,0.0238]
[1737479141146,0.29755248,105030.0,105020.0,0.0238]
[1737479142248,0.29755248,105030.0,105020.0,0.0258]
[1737479143646,0.38036212,105030.0,105020.0,0.0258]
[1737479143957,0.38993594,105030.0,105020.0,0.0258]
[1737479148255,0.38993594,105030.0,105020.0,0.0238]
[1737479148455,0.39093594,105030.0,105020.0,0.0238]
[1737479148951,0.39193594,105030.0,105020.0,0.0238]
[1737479150356,0.75273594,105030.0,105020.0,0.0238]
[1737479150673,0.39193594,105030.0,105020.0,0.0238]
[1737479150852,0.09438346,105030.0,105020.0,0.432231]
[1737479151252,0.09438346,105030.0,105020.0,0.556831]
[1737479152249,0.08480964,105030.0,105020.0,0.556831]
[1737479152557,0.08380964,105030.0,105020.0,0.558831]
[1737479152949,0.08280964,105030.0,105020.0,0.558831]
[1737479153660,0.08280964,105030.0,105020.0,0.68955748]
[1737479153958,0.16657334,105050.0,105030.0,0.047626]
[1737479154159,0.16657334,105050.0,105040.0,1.015122]
[1737479154553,0.21419034,105050.0,105040.0,1.015122]
[1737479154753,0.16657334,105050.0,105040.0,1.015122]
[1737479155254,0.16957334,105050.0,105040.0,1.015122]
[1737479155460,0.17157334,105050.0,105040.0,1.015122]
[1737479155856,0.16857334,105050.0,105040.0,1.015122]
[1737479156058,0.17157334,105050.0,105040.0,1.015122]
[1737479156359,0.17157334,105050.0,105040.0,0.408422]
[1737479156360,0.21919034,105050.0,105040.0,0.408422]
[1737479157154,0.21919034,105050.0,105040.0,1.908422]
[1737479157661,0.21919034,105050.0,105040.0,1.932222]
[1737479158363,0.21919034,105050.0,105040.0,2.293022]
[1737479158562,0.17157334,105050.0,105040.0,2.293022]
[1737479159755,0.21919034,105050.0,105040.0,2.293022]
[1737479159957,0.052617,105050.0,105040.0,2.293022]
[1737479161368,0.005,105050.0,105040.0,2.42374848]
[1737479161670,0.21418034,105080.0,105070.0,0.047608]
[1737479161867,0.21418034,105080.0,105070.0,0.769208]
[1737479162163,0.21418034,105080.0,105070.0,1.009108]
[1737479162766,0.21418034,105080.0,105070.0,2.509108]
[1737479162967,0.21618034,105080.0,105070.0,2.149308]
[1737479163169,0.21618034,105080.0,105070.0,0.288508]
[1737479163472,0.35090682,105080.0,105070.0,0.409408]
[1737479163663,0.22018034,105080.0,105070.0,0.409408]
[1737479164367,0.17257334,105080.0,105070.0,0.54013448]
[1737479164569,0.00014263,105090.0,105070.0,0.84013448]
[1737479164874,0.51798625,105100.0,105090.0,0.047599]
[1737479165076,0.51798625,105100.0,105090.0,0.53912548]
[1737479165466,0.25058634,105110.0,105090.0,0.53912548]
[1737479165679,0.25058634,105110.0,105100.0,0.53912148]
[1737479166067,0.25072897,105110.0,105100.0,0.53912148]
[1737479166764,1.2665522,105120.0,105110.0,0.04759]
[1737479166963,1.2660722,105120.0,105110.0,0.53911648]
[1737479167172,1.6268722,105120.0,105100.0,0.49152648]
[1737479167370,0.04759,105110.0,105100.0,0.3608]
[1737479167676,0.047595,105100.0,105090.0,0.40954063]
[1737479168074,0.047595,105100.0,105090.0,0.76934063]
[1737479168571,0.172191,105110.0,105100.0,0.047595]
[1737479168769,1.00794601,105120.0,105110.0,0.04759]
[1737479168968,1.007386,105120.0,105110.0,0.40839]
[1737479169179,1.007386,105120.0,105110.0,0.04759]
[1737479169374,1.007386,105120.0,105110.0,0.40839]
[1737479170164,1.007386,105120.0,105100.0,2.025311]
[1737479170370,1.007386,105120.0,105100.0,0.524793]
[1737479170573,0.49152648,105110.0,105090.0,0.00977648]
[1737479170876,0.89492148,105100.0,105080.0,0.3608]
[1737479171066,0.047605,105080.0,105060.0,0.52492406]
[1737479171777,0.047605,105080.0,105060.0,0.658011]
[1737479171978,0.047605,105080.0,105070.0,0.047608]
[1737479172177,0.04774763,105080.0,105070.0,0.047608]
[1737479173471,0.17847411,105080.0,105070.0,0.047608]
[1737479173872,0.17847411,105080.0,105070.0,0.049608]
[1737479174085,0.04774763,105080.0,105070.0,0.049608]
[1737479174475,0.04774763,105080.0,105070.0,0.054608]
[1737479174677,0.00014263,105080.0,105070.0,0.054608]
[1737479174873,0.00014263,105080.0,105070.0,0.049608]
[1737479175382,0.00014263,105080.0,105070.0,0.047608]
[1737479176685,0.53927611,105080.0,105060.0,0.41832903]
[1737479176878,0.30103448,105070.0,105060.0,0.41833003]
[1737479177181,0.3638,105070.0,105060.0,0.41833003]
[1737479177385,0.3638,105070.0,105060.0,0.36094263]
[1737479177677,0.54213448,105070.0,105060.0,0.36094263]
[1737479178476,0.54213448,105070.0,105060.0,0.36294263]
[1737479178784,0.54213448,105070.0,105060.0,0.41055563]
[1737479179085,0.54213448,105070.0,105060.0,0.36294263]
[1737479179589,0.3638,105070.0,105060.0,0.41155563]
[1737479179975,0.411408,105070.0,105060.0,0.41155563]
[1737479180380,0.54213448,105070.0,105060.0,0.41155563]
[1737479180695,0.54213448,105070.0,105060.0,0.36394263]
[1737479181077,0.54213448,105070.0,105060.0,0.00314263]
[1737479181278,0.047613,105060.0,105050.0,0.3608]
[1737479181574,0.13072648,105060.0,105050.0,0.408417]
[1737479182181,0.17833948,105060.0,105050.0,0.3608]
[1737479182484,0.17833948,105060.0,105050.0,0.3628]
[1737479183077,0.17833948,105060.0,105050.0,0.3678]
[1737479184081,0.13072648,105060.0,105050.0,0.3678]
[1737479184279,0.90293648,105070.0,105050.0,0.415416]
[1737479184580,0.3638,105070.0,105060.0,0.408413]
[1737479184781,0.49452648,105070.0,105060.0,0.3608]
[1737479184989,0.54213548,105070.0,105060.0,0.3608]
[1737479185288,0.54213548,105070.0,105050.0,0.415414]
[1737479185474,0.13072648,105060.0,105050.0,0.415414]
[1737479185675,0.13072648,105060.0,105050.0,0.408414]
[1737479185984,0.13072648,105060.0,105050.0,0.409414]
[1737479186376,0.13072648,105060.0,105050.0,0.411414]
[1737479186989,0.13072648,105060.0,105050.0,0.410414]
[1737479187282,0.13072648,105060.0,105050.0,0.412414]
[1737479187686,0.17833948,105060.0,105050.0,0.412414]
[1737479187887,0.17833948,105060.0,105050.0,0.410414]
[1737479188199,0.17833948,105060.0,105050.0,0.415414]
[1737479188684,0.047613,105060.0,105050.0,0.415414]
[1737479189186,0.49452648,105070.0,105050.0,0.3678]
[1737479189381,0.49452648,105070.0,105060.0,0.408413]
[1737479189382,0.54213648,105070.0,105060.0,0.408413]
[1737479190985,0.54213648,105070.0,105060.0,0.410413]
[1737479191187,0.54213648,105070.0,105060.0,0.3628]
[1737479191784,0.49847914,105070.0,105060.0,0.38659]
[1737479192086,0.49847914,105070.0,105060.0,0.38759]
[1737479195483,0.49847914,105070.0,105060.0,0.435203]
[1737479196380,0.49847914,105070.0,105060.0,0.074403]
[1737479197186,0.49847914,105070.0,105060.0,0.38759]
[1737479198279,0.49847914,105070.0,105060.0,0.02679]
[1737479200388,0.49847914,105070.0,105060.0,0.38759]
[1737479201289,0.58554828,105070.0,105050.0,0.3608]
[1737479201498,0.047617,105050.0,105040.0,0.00014263]
[1737479201694,0.49548614,105050.0,105040.0,0.00014263]
[1737479202194,0.047622,105040.0,105030.0,0.22771306]
[1737479202391,0.047631,105020.0,105010.0,0.7562827]
[1737479202597,0.13470014,105020.0,105010.0,0.7562827]
[1737479202888,0.49550014,105020.0,105010.0,0.7562827]
[1737479204383,0.49550014,105020.0,105010.0,0.41517547]
[1737479204587,0.49550014,105020.0,105010.0,0.005]
[1737479205088,0.49550014,105020.0,105010.0,0.007]
[1737479205496,0.62160014,105020.0,105010.0,0.007]
[1737479206591,0.63149197,105020.0,105010.0,0.007]
[1737479207098,0.047635,105010.0,105000.0,0.44124986]
[1737479207297,0.70117328,105010.0,105000.0,0.44124986]
[1737479207892,0.61410414,105010.0,105000.0,0.10014263]
[1737479208293,0.25330414,105010.0,105000.0,0.13194263]
[1737479209096,0.25330414,105010.0,105000.0,0.14094263]
[1737479209295,0.61410414,105010.0,105000.0,0.14094263]
[1737479210303,0.73520414,105010.0,105000.0,0.14094263]
[1737479210497,0.37440414,105010.0,105000.0,0.14094263]
[1737479211002,0.73520414,105010.0,105000.0,0.14094263]
[1737479212000,0.37440414,105010.0,105000.0,0.14094263]
[1737479212195,0.73520414,105010.0,105000.0,0.14094263]
[1737479212399,0.37440414,105010.0,105000.0,0.14094263]
[1737479213203,0.73520414,105010.0,105000.0,0.14094263]
[1737479214994,0.73520414,105010.0,104970.0,0.1223]
[1737479214995,0.82227328,105010.0,104970.0,0.1223]
[1737479215197,0.047654,104970.0,104960.0,0.3608]
[1737479215397,0.13472314,104970.0,104960.0,0.3608]
[1737479217595,0.047654,104970.0,104960.0,0.3608]
[1737479217898,0.048654,104970.0,104960.0,0.3678]
[1737479218101,0.049654,104970.0,104960.0,0.3768]
[1737479219796,0.049654,104970.0,104960.0,0.424458]
[1737479221592,0.13672314,104970.0,104960.0,0.3768]
[1737479221795,0.049654,104970.0,104960.0,0.3768]
[1737479222201,0.049654,104970.0,104960.0,0.424458]
[1737479222598,0.049654,104970.0,104960.0,0.415458]
[1737479222794,0.002,104970.0,104960.0,0.50252714]
[1737479222999,0.002,104970.0,104960.0,0.415458]
[1737479223206,0.002,104970.0,104960.0,0.50252714]
[1737479223600,0.001,104970.0,104960.0,0.49552714]
[1737479224008,0.04779363,104980.0,104960.0,0.49552714]
[1737479224198,0.04779363,104980.0,104970.0,0.523754]
[1737479224604,0.04779363,104980.0,104970.0,0.61082314]
[1737479224798,0.04779363,104980.0,104970.0,0.523754]
[1737479225306,0.04779363,104980.0,104970.0,0.527754]
[1737479226013,0.047647,104990.0,104980.0,0.047649]
[1737479226310,0.047647,104990.0,104980.0,0.653849]
[1737479229002,0.047647,104990.0,104980.0,0.74091814]
[1737479229200,0.047647,104990.0,104980.0,0.66362107]
[1737479229600,0.047647,104990.0,104980.0,0.653849]
[1737479231305,0.047647,104990.0,104980.0,0.74091814]
[1737479231704,0.047647,104990.0,104980.0,0.653849]
[1737479231901,0.00014263,105000.0,104990.0,0.047644]
[1737479232105,0.047632,105020.0,105010.0,0.047632]
[1737479232300,0.047628,105030.0,105020.0,0.047628]
[1737479232505,0.047628,105030.0,105020.0,0.61179714]
[1737479232907,0.047628,105030.0,105020.0,0.524728]
[1737479233308,0.047628,105030.0,105020.0,0.548528]
[1737479233309,0.21368096,105030.0,105020.0,0.548528]
[1737479233711,0.16605296,105030.0,105020.0,0.63559714]
[1737479234605,0.16605296,105030.0,105020.0,0.548528]
[1737479235006,0.21367896,105030.0,105020.0,0.187728]
[1737479235206,0.74861724,105030.0,105020.0,0.0238]
[1737479235413,0.047631,105020.0,105010.0,0.00014263]
[1737479235602,0.04764,105000.0,104990.0,0.3608]
[1737479235803,0.04764,105000.0,104990.0,0.408444]
[1737479236413,0.047638,105010.0,104990.0,0.49551314]
[1737479236608,0.047638,105010.0,104990.0,0.51932314]
[1737479236808,0.047638,105010.0,104990.0,0.02395263]
[1737479236809,0.13470914,105000.0,104990.0,0.02395263]
[1737479237118,0.49550914,105000.0,104990.0,0.02395263]
[1737479237610,0.61050914,105000.0,104990.0,0.02395263]
[1737479238503,0.047644,104990.0,104980.0,0.28448696]
[1737479238708,0.62201314,104990.0,104980.0,0.28448696]
[1737479239314,0.0099332,105010.0,104980.0,0.7323561]
[1737479239608,0.08721177,105010.0,105000.0,0.40844]
[1737479240009,0.08721177,105010.0,105000.0,1.90844]
[1737479240404,0.08721177,105010.0,105000.0,0.40844]
[1737479240615,0.08821177,105010.0,105000.0,0.40844]
[1737479241117,0.00014263,105010.0,105000.0,0.40844]
[1737479241516,0.08721177,105010.0,105000.0,0.40844]
[1737479241717,0.00014263,105010.0,105000.0,0.40844]
[1737479243114,0.00114263,105010.0,105000.0,0.41444]
[1737479243415,0.00214263,105010.0,105000.0,0.44724]
[1737479244720,0.00214263,105010.0,105000.0,0.44824]
[1737479246414,0.00214263,105010.0,105000.0,1.94824]
[1737479247322,0.00214263,105010.0,105000.0,0.44824]
[1737479248713,0.04977763,105010.0,105000.0,0.44824]
[1737479250717,0.00214263,105010.0,105000.0,0.44824]
[1737479250919,0.2415,105030.0,105000.0,0.57898157]
[1737479251214,0.00526,105040.0,105030.0,0.047626]
[1737479251412,0.00526,105040.0,105030.0,0.408426]
[1737479251815,0.3102646,105040.0,105030.0,0.408426]
[1737479253109,0.3132646,105040.0,105030.0,0.408426]
[1737479253718,0.3142646,105040.0,105030.0,0.408426]
[1737479254917,0.3618866,105040.0,105030.0,0.408426]
[1737479255732,0.056882,105040.0,105030.0,0.408426]
[1737479260117,0.180082,105040.0,105030.0,0.408426]
[1737479261823,0.26719756,105040.0,105030.0,0.408426]
[1737479263621,0.180082,105040.0,105030.0,0.408426]
[1737479264318,0.26719756,105040.0,105030.0,0.408426]
[1737479265618,0.00926,105040.0,105030.0,0.408426]
[1737479265815,0.00926,105040.0,105030.0,0.49554156]
[1737479266029,0.00926,105040.0,105030.0,0.408426]
[1737479266219,0.00926,105040.0,105030.0,0.534326]
[1737479266522,0.25912249,105040.0,105030.0,2.034326]
[1737479266736,0.25912249,105040.0,105030.0,0.534326]
[1737479267420,0.25912249,105040.0,105030.0,0.558126]
[1737479268818,0.25912249,105040.0,105030.0,0.64524156]
[1737479270026,0.25912249,105040.0,105030.0,0.558126]
[1737479270531,0.25912249,105040.0,105030.0,0.64524156]
[1737479270717,0.1395208,105050.0,105040.0,0.047622]
[1737479271024,0.1395208,105050.0,105040.0,0.61963756]
[1737479272019,0.1425208,105050.0,105040.0,0.61963756]